[Event "*** Titled Tuesday 3|2 Blitz"]
[Site "Chess.com"]
[Date "2016.09.06"]
[Round "1"]
[White "danir29"]
[Black "Kawhi_Leonard2"]
[Result "1-0"]
[WhiteElo "2412"]
[BlackElo "2012"]
[TimeControl "180+2"]
[EndTime "17:07:13 PDT"]
[Termination "danir29 won on time"]

1. d4 {[%clk 0:02:00.1]} 1... Nf6 {[%clk 0:02:59.8]} 2. Nf3 {[%clk 0:01:59.8]}
2... e6 {[%clk 0:03:00.5]} 3. e3 {[%clk 0:01:58.7]} 3... d5 {[%clk 0:03:00.8]}
4. Bd3 {[%clk 0:01:56.1]} 4... c5 {[%clk 0:03:01.4]} 5. b3 {[%clk 0:01:56.2]}
5... Nc6 {[%clk 0:03:02]} 6. Bb2 {[%clk 0:01:56.6]} 6... Qc7 {[%clk 0:02:59.9]}
7. a3 {[%clk 0:01:57.4]} 7... b6 {[%clk 0:02:55.9]} 8. O-O {[%clk 0:01:58.2]}
8... Bb7 {[%clk 0:02:56.8]} 9. Nbd2 {[%clk 0:01:55.2]} 9... Bd6 {[%clk
0:02:54.5]} 10. Qe2 {[%clk 0:01:52.7]} 10... O-O {[%clk 0:02:38.7]} 11. dxc5
{[%clk 0:01:52.8]} 11... bxc5 {[%clk 0:02:21.2]} 12. e4 {[%clk 0:01:42.9]} 12...
d4 {[%clk 0:02:05.8]} 13. Nc4 {[%clk 0:01:39.4]} 13... e5 {[%clk 0:02:03.6]} 14.
Nh4 {[%clk 0:01:37.9]} 14... Ne7 {[%clk 0:01:53.8]} 15. c3 {[%clk 0:01:34.4]}
15... Ng6 {[%clk 0:01:51.8]} 16. Nxg6 {[%clk 0:01:33.2]} 16... hxg6 {[%clk
0:01:52]} 17. cxd4 {[%clk 0:01:33.6]} 17... cxd4 {[%clk 0:01:51]} 18. Rac1
{[%clk 0:01:34.6]} 18... Qe7 {[%clk 0:01:51.1]} 19. Rc2 {[%clk 0:01:32.4]} 19...
Nh5 {[%clk 0:01:31]} 20. g3 {[%clk 0:01:32.6]} 20... Nf6 {[%clk 0:01:28.1]} 21.
Rfc1 {[%clk 0:01:33]} 21... Rfc8 {[%clk 0:01:27.6]} 22. b4 {[%clk 0:01:31.1]}
22... Bc7 {[%clk 0:01:09]} 23. b5 {[%clk 0:01:29.3]} 23... Nd7 {[%clk
0:01:05.9]} 24. a4 {[%clk 0:01:29]} 24... a6 {[%clk 0:00:37.7]} 25. b6 {[%clk
0:01:15.7]} 25... Nxb6 {[%clk 0:00:33.4]} 26. Na5 {[%clk 0:01:16.4]} 26... Bd6
{[%clk 0:00:29.6]} 27. Nxb7 {[%clk 0:01:16.3]} 27... Qxb7 {[%clk 0:00:30]} 28.
Rxc8+ {[%clk 0:01:14.7]} 28... Nxc8 {[%clk 0:00:21]} 29. Bc4 {[%clk 0:01:15.7]}
29... Nb6 {[%clk 0:00:20]} 30. Bb3 {[%clk 0:01:17.1]} 30... a5 {[%clk
0:00:20.7]} 31. Qb5 {[%clk 0:01:17.3]} 31... Qa7 {[%clk 0:00:10.8]} 32. Rc6
{[%clk 0:01:17.2]} 32... Bc7 {[%clk 0:00:08.8]} 33. Ba3 {[%clk 0:01:17.4]} 33...
Rd8 {[%clk 0:00:07.2]} 34. Bc5 {[%clk 0:01:17.9]} 1-0

[Event "*** Titled Tuesday 3|2 Blitz"]
[Site "Chess.com"]
[Date "2016.09.06"]
[Round "1"]
[White "goingin33"]
[Black "jk13"]
[Result "0-1"]
[WhiteElo "2168"]
[BlackElo "2481"]
[TimeControl "180+2"]
[EndTime "17:07:44 PDT"]
[Termination "jk13 won by resignation"]

1. e4 {[%clk 0:02:59.3]} 1... e5 {[%clk 0:02:59.5]} 2. Nf3 {[%clk 0:03:00]} 2...
Nc6 {[%clk 0:03:01.1]} 3. Nc3 {[%clk 0:03:00]} 3... Nf6 {[%clk 0:03:02.5]} 4.
Bb5 {[%clk 0:02:56]} 4... Bd6 {[%clk 0:03:03.1]} 5. d3 {[%clk 0:02:56.5]} 5...
O-O {[%clk 0:03:04.5]} 6. a3 {[%clk 0:02:57.4]} 6... Re8 {[%clk 0:03:05]} 7. g4
{[%clk 0:02:58.5]} 7... a6 {[%clk 0:03:06]} 8. Bc4 {[%clk 0:02:57.5]} 8... Bc5
{[%clk 0:03:04.4]} 9. g5 {[%clk 0:02:53.6]} 9... Ng4 {[%clk 0:03:03.8]} 10. Rf1
{[%clk 0:02:54.3]} 10... d6 {[%clk 0:03:01.2]} 11. h3 {[%clk 0:02:54.6]} 11...
Nxf2 {[%clk 0:03:02]} 12. Rxf2 {[%clk 0:02:56.5]} 12... Bxf2+ {[%clk 0:03:03.1]}
13. Kxf2 {[%clk 0:02:58.4]} 13... Bxh3 {[%clk 0:03:03.6]} 14. g6 {[%clk
0:02:50.5]} 14... Be6 {[%clk 0:02:51.1]} 15. gxf7+ {[%clk 0:02:37.4]} 15... Bxf7
{[%clk 0:02:51.6]} 16. Bxf7+ {[%clk 0:02:38.4]} 16... Kxf7 {[%clk 0:02:53.5]}
17. Ng5+ {[%clk 0:02:39.6]} 17... Kg8 {[%clk 0:02:54.4]} 18. Kg2 {[%clk
0:02:34]} 18... h6 {[%clk 0:02:52.5]} 19. Nf3 {[%clk 0:02:32.6]} 19... Rf8
{[%clk 0:02:53.1]} 20. Be3 {[%clk 0:02:32.2]} 20... Qf6 {[%clk 0:02:50.8]} 21.
Nh2 {[%clk 0:02:21.6]} 21... Rf7 {[%clk 0:02:46.5]} 22. Qg4 {[%clk 0:02:18.2]}
22... Ne7 {[%clk 0:02:39.6]} 23. Rf1 {[%clk 0:02:17.7]} 23... Qg6 {[%clk
0:02:40.6]} 24. Qxg6 {[%clk 0:01:58.7]} 24... Nxg6 {[%clk 0:02:42.5]} 25. Rxf7
{[%clk 0:01:59.8]} 25... Kxf7 {[%clk 0:02:43.9]} 26. Ne2 {[%clk 0:01:58]} 26...
Ne7 {[%clk 0:02:39.6]} 27. Ng3 {[%clk 0:01:56.5]} 27... Rh8 {[%clk 0:02:32.1]}
28. Nh5 {[%clk 0:01:51.3]} 28... g6 {[%clk 0:02:30.6]} 29. Ng3 {[%clk
0:01:49.2]} 29... g5 {[%clk 0:02:27.6]} 30. Kh3 {[%clk 0:01:41.2]} 30... Kg6
{[%clk 0:02:26.9]} 31. d4 {[%clk 0:01:32.1]} 31... h5 {[%clk 0:02:25]} 32. dxe5
{[%clk 0:01:26.5]} 32... dxe5 {[%clk 0:02:26.9]} 33. Bc5 {[%clk 0:01:26.6]}
33... Ng8 {[%clk 0:02:14.4]} 34. Nf5 {[%clk 0:01:23.7]} 34... Nf6 {[%clk
0:02:13.7]} 35. Ne7+ {[%clk 0:01:20.8]} 35... Kf7 {[%clk 0:02:13.1]} 36. Nd5
{[%clk 0:01:12.8]} 36... Nxe4 {[%clk 0:02:13.9]} 37. Be3 {[%clk 0:01:07.9]}
37... c6 {[%clk 0:02:14]} 38. Nb6 {[%clk 0:01:04.8]} 38... Ke6 {[%clk
0:02:11.4]} 39. Kg2 {[%clk 0:01:02.1]} 39... Kf5 {[%clk 0:02:09.4]} 40. Nc4
{[%clk 0:00:55.3]} 40... g4 {[%clk 0:02:04]} 41. Nf1 {[%clk 0:00:50.5]} 41... h4
{[%clk 0:02:04]} 42. c3 {[%clk 0:00:40.8]} 42... h3+ {[%clk 0:02:02]} 43. Kh2
{[%clk 0:00:40.9]} 43... g3+ {[%clk 0:02:01.4]} 44. Nxg3+ {[%clk 0:00:34]} 44...
Nxg3 {[%clk 0:02:03.3]} 45. Nxe5 {[%clk 0:00:34.2]} 45... Kxe5 {[%clk
0:02:01.6]} 46. Bd4+ {[%clk 0:00:34.1]} 46... Kf4 {[%clk 0:02:02.5]} 47. Bxh8
{[%clk 0:00:35.1]} 47... Kg4 {[%clk 0:02:04]} 48. Bd4 {[%clk 0:00:28.1]} 48...
Nf5 {[%clk 0:02:01.6]} 49. Be5 {[%clk 0:00:28.8]} 49... Nh4 {[%clk 0:02:02.1]}
50. Bc7 {[%clk 0:00:28.3]} 50... Nf3+ {[%clk 0:02:04]} 51. Kh1 {[%clk
0:00:29.6]} 51... Kf5 {[%clk 0:02:04.6]} 52. b4 {[%clk 0:00:30.2]} 52... b5
{[%clk 0:02:04.3]} 53. Bg3 {[%clk 0:00:28.4]} 53... Ke4 {[%clk 0:02:05.6]} 54.
Bh4 {[%clk 0:00:28.5]} 54... Kd3 {[%clk 0:02:06.7]} 55. Bf6 {[%clk 0:00:29.8]}
55... Kc2 {[%clk 0:02:07.3]} 56. a4 {[%clk 0:00:31.6]} 56... bxa4 {[%clk
0:02:07.1]} 57. c4 {[%clk 0:00:33.2]} 57... Kb3 {[%clk 0:02:06.3]} 58. b5 {[%clk
0:00:34.5]} 58... axb5 {[%clk 0:02:07.3]} 59. c5 {[%clk 0:00:36.4]} 59... Kc4
{[%clk 0:02:05.9]} 60. Bd4 {[%clk 0:00:35]} 60... Nxd4 {[%clk 0:02:05.4]} 0-1

[Event "*** Titled Tuesday 3|2 Blitz"]
[Site "Chess.com"]
[Date "2016.09.06"]
[Round "1"]
[White "fidetrainerNET"]
[Black "Newlight1"]
[Result "0-1"]
[WhiteElo "2191"]
[BlackElo "2507"]
[TimeControl "180+2"]
[EndTime "17:08:20 PDT"]
[Termination "Newlight1 won by checkmate"]

1. d4 {[%clk 0:02:59.3]} 1... Nf6 {[%clk 0:03:00.9]} 2. c4 {[%clk 0:03:00.2]}
2... c5 {[%clk 0:03:02.5]} 3. d5 {[%clk 0:03:00.6]} 3... e6 {[%clk 0:03:04.2]}
4. Nc3 {[%clk 0:03:00.4]} 4... exd5 {[%clk 0:03:05.9]} 5. cxd5 {[%clk 0:03:01]}
5... d6 {[%clk 0:03:07.6]} 6. e4 {[%clk 0:03:01.7]} 6... g6 {[%clk 0:03:09.3]}
7. Nf3 {[%clk 0:02:59.4]} 7... Bg7 {[%clk 0:03:10.7]} 8. Be2 {[%clk 0:02:56.6]}
8... O-O {[%clk 0:03:10.3]} 9. O-O {[%clk 0:02:58]} 9... Re8 {[%clk 0:03:10.8]}
10. Nd2 {[%clk 0:02:58.8]} 10... a6 {[%clk 0:03:05.5]} 11. a4 {[%clk 0:02:59.1]}
11... Nbd7 {[%clk 0:03:07.2]} 12. Qc2 {[%clk 0:02:57.6]} 12... Ne5 {[%clk
0:02:27]} 13. h3 {[%clk 0:02:52.9]} 13... g5 {[%clk 0:02:01.3]} 14. Nc4 {[%clk
0:02:48.7]} 14... Nxc4 {[%clk 0:02:01.1]} 15. Bxc4 {[%clk 0:02:48.6]} 15... Nh5
{[%clk 0:02:02.5]} 16. a5 {[%clk 0:02:45.4]} 16... g4 {[%clk 0:02:01.2]} 17.
hxg4 {[%clk 0:02:44]} 17... Bxg4 {[%clk 0:02:03.1]} 18. Be2 {[%clk 0:02:42.5]}
18... Qh4 {[%clk 0:01:55.5]} 19. Ra4 {[%clk 0:02:21.2]} 19... Be5 {[%clk
0:01:46.5]} 20. f4 {[%clk 0:02:17.5]} 20... Bd4+ {[%clk 0:01:47.1]} 21. Rxd4
{[%clk 0:02:09.3]} 21... cxd4 {[%clk 0:01:49]} 22. Bxg4 {[%clk 0:02:09.2]} 22...
Qxg4 {[%clk 0:01:50.9]} 23. Ne2 {[%clk 0:02:06.1]} 23... Nf6 {[%clk 0:01:50.7]}
24. e5 {[%clk 0:01:50.6]} 24... Nxd5 {[%clk 0:01:43.3]} 25. Rf3 {[%clk
0:01:43.1]} 25... Kh8 {[%clk 0:01:40.7]} 26. Rh3 {[%clk 0:01:39.5]} 26... Qg6
{[%clk 0:01:37.9]} 27. f5 {[%clk 0:01:37]} 27... Qg7 {[%clk 0:01:38]} 28. Nf4
{[%clk 0:01:27]} 28... Rac8 {[%clk 0:01:34.1]} 29. f6 {[%clk 0:00:48.6]} 29...
Rxc2 {[%clk 0:01:26.2]} 30. fxg7+ {[%clk 0:00:48]} 30... Kxg7 {[%clk 0:01:28.1]}
31. Nh5+ {[%clk 0:00:32.6]} 31... Kh8 {[%clk 0:01:20.7]} 32. Bh6 {[%clk
0:00:33.4]} 32... Rg8 {[%clk 0:01:14.8]} 33. exd6 {[%clk 0:00:30.1]} 33...
Rgxg2+ {[%clk 0:00:59.1]} 34. Kh1 {[%clk 0:00:25.5]} 34... Ne3 {[%clk
0:00:28.8]} 35. Bg7+ {[%clk 0:00:21.4]} 35... Kg8 {[%clk 0:00:20.9]} 36. Rxe3
{[%clk 0:00:11.3]} 36... dxe3 {[%clk 0:00:21.7]} 37. d7 {[%clk 0:00:12.3]} 37...
Rgd2 {[%clk 0:00:22.7]} 38. Bf6 {[%clk 0:00:11.1]} 38... Rc1# {[%clk 0:00:23.9]}
0-1

[Event "*** Titled Tuesday 3|2 Blitz"]
[Site "Chess.com"]
[Date "2016.09.06"]
[Round "1"]
[White "ZapataCharlesS"]
[Black "IamSchrodingersCat"]
[Result "1-0"]
[WhiteElo "2585"]
[BlackElo "2264"]
[TimeControl "180+2"]
[EndTime "17:08:36 PDT"]
[Termination "ZapataCharlesS won by resignation"]

1. e4 {[%clk 0:02:41.6]} 1... c5 {[%clk 0:03:00.1]} 2. c3 {[%clk 0:02:40.7]}
2... g6 {[%clk 0:03:00.2]} 3. d4 {[%clk 0:02:40.9]} 3... cxd4 {[%clk 0:03:02.1]}
4. cxd4 {[%clk 0:02:42.8]} 4... d5 {[%clk 0:03:02]} 5. exd5 {[%clk 0:02:44.7]}
5... Nf6 {[%clk 0:03:02.6]} 6. Nc3 {[%clk 0:02:43.5]} 6... Nxd5 {[%clk
0:02:59.6]} 7. Bc4 {[%clk 0:02:43.1]} 7... Nxc3 {[%clk 0:02:55]} 8. bxc3 {[%clk
0:02:45]} 8... Bg7 {[%clk 0:02:55]} 9. Nf3 {[%clk 0:02:44.9]} 9... O-O {[%clk
0:02:53.9]} 10. Bf4 {[%clk 0:02:42.7]} 10... b6 {[%clk 0:02:46.3]} 11. O-O
{[%clk 0:02:42.7]} 11... Bg4 {[%clk 0:02:36.3]} 12. h3 {[%clk 0:02:37.8]} 12...
Bxf3 {[%clk 0:02:36]} 13. Qxf3 {[%clk 0:02:38.1]} 13... Nd7 {[%clk 0:02:37.6]}
14. Rfe1 {[%clk 0:02:32.3]} 14... Nf6 {[%clk 0:02:28.9]} 15. Bb3 {[%clk
0:01:49.5]} 15... Qd7 {[%clk 0:02:17.6]} 16. Rad1 {[%clk 0:01:46.5]} 16... Rac8
{[%clk 0:02:13]} 17. c4 {[%clk 0:01:41.6]} 17... a5 {[%clk 0:02:03.5]} 18. a3
{[%clk 0:01:24]} 18... Rfd8 {[%clk 0:01:57.5]} 19. Bg5 {[%clk 0:01:19]} 19...
Qd6 {[%clk 0:01:39.4]} 20. Re2 {[%clk 0:01:05.4]} 20... Re8 {[%clk 0:01:19.4]}
21. Ba4 {[%clk 0:00:49.1]} 21... Red8 {[%clk 0:01:16.9]} 22. Bb5 {[%clk
0:00:49.6]} 22... Ra8 {[%clk 0:01:00.7]} 23. a4 {[%clk 0:00:48.9]} 23... Ra7
{[%clk 0:01:00.9]} 24. d5 {[%clk 0:00:41.4]} 24... h6 {[%clk 0:00:43]} 25. Bf4
{[%clk 0:00:39.5]} 25... Qc5 {[%clk 0:00:42.1]} 26. Rde1 {[%clk 0:00:37.6]}
26... g5 {[%clk 0:00:36.5]} 27. Be3 {[%clk 0:00:34.2]} 27... Qd6 {[%clk
0:00:36.3]} 28. Bd4 {[%clk 0:00:32.1]} 28... Kf8 {[%clk 0:00:25.7]} 29. Be5
{[%clk 0:00:32.2]} 29... Qc5 {[%clk 0:00:25.7]} 30. Bb2 {[%clk 0:00:27.1]} 30...
Ng8 {[%clk 0:00:17.1]} 31. Ba3 {[%clk 0:00:22.8]} 31... Qd4 {[%clk 0:00:14.2]}
32. Re4 {[%clk 0:00:24.4]} 32... Qf6 {[%clk 0:00:15]} 33. Qe2 {[%clk 0:00:22.9]}
33... h5 {[%clk 0:00:09.3]} 34. h4 {[%clk 0:00:24.8]} 34... g4 {[%clk
0:00:09.1]} 35. Bc6 {[%clk 0:00:17]} 35... Bh6 {[%clk 0:00:10]} 36. c5 {[%clk
0:00:17.7]} 36... bxc5 {[%clk 0:00:08.4]} 37. Bxc5 {[%clk 0:00:19.6]} 37... Ra6
{[%clk 0:00:09.9]} 38. Qxa6 {[%clk 0:00:15.8]} 1-0

[Event "*** Titled Tuesday 3|2 Blitz"]
[Site "Chess.com"]
[Date "2016.09.06"]
[Round "1"]
[White "tabarex"]
[Black "putinwarrior"]
[Result "0-1"]
[WhiteElo "1873"]
[BlackElo "2344"]
[TimeControl "180+2"]
[EndTime "17:08:40 PDT"]
[Termination "putinwarrior won by checkmate"]

1. Nc3 {[%clk 0:02:56.8]} 1... g6 {[%clk 0:02:55.8]} 2. d4 {[%clk 0:02:57.5]}
2... Bg7 {[%clk 0:02:57.7]} 3. Bg5 {[%clk 0:02:57.6]} 3... h6 {[%clk 0:02:57.4]}
4. Bf4 {[%clk 0:02:58.6]} 4... c5 {[%clk 0:02:58.3]} 5. e3 {[%clk 0:02:58.7]}
5... Nf6 {[%clk 0:02:55.2]} 6. Nf3 {[%clk 0:02:58.2]} 6... O-O {[%clk
0:02:55.4]} 7. Qd2 {[%clk 0:02:56.3]} 7... b6 {[%clk 0:02:53.4]} 8. Be2 {[%clk
0:02:56.1]} 8... Bb7 {[%clk 0:02:53.7]} 9. d5 {[%clk 0:02:54.4]} 9... Nh5 {[%clk
0:02:52.6]} 10. Bg3 {[%clk 0:02:52.3]} 10... d6 {[%clk 0:02:50.9]} 11. e4 {[%clk
0:02:52.3]} 11... Nd7 {[%clk 0:02:47.7]} 12. O-O {[%clk 0:02:51.9]} 12... Nxg3
{[%clk 0:02:47.8]} 13. hxg3 {[%clk 0:02:48.1]} 13... a6 {[%clk 0:02:49.2]} 14.
Nh4 {[%clk 0:02:46.3]} 14... b5 {[%clk 0:02:47.9]} 15. Rae1 {[%clk 0:02:39.5]}
15... Qa5 {[%clk 0:02:44.9]} 16. a3 {[%clk 0:02:32.2]} 16... Nb6 {[%clk
0:02:36.6]} 17. f4 {[%clk 0:02:29.9]} 17... Na4 {[%clk 0:02:32.2]} 18. Rf3
{[%clk 0:01:51.2]} 18... Nxb2 {[%clk 0:02:10.5]} 19. f5 {[%clk 0:01:07.4]} 19...
Na4 {[%clk 0:01:52.6]} 20. f6 {[%clk 0:01:08]} 20... exf6 {[%clk 0:01:33.9]} 21.
Rf5 {[%clk 0:00:37.7]} 21... Qxc3 {[%clk 0:01:27.6]} 22. Qd1 {[%clk 0:00:37.8]}
22... Qd4+ {[%clk 0:01:22.7]} 23. Qxd4 {[%clk 0:00:37]} 23... cxd4 {[%clk
0:01:24.6]} 24. Rf2 {[%clk 0:00:37.3]} 24... Rac8 {[%clk 0:01:21.4]} 25. Bd3
{[%clk 0:00:38.2]} 25... Nc5 {[%clk 0:01:21.1]} 26. Ref1 {[%clk 0:00:38.9]}
26... Nxd3 {[%clk 0:01:21.6]} 27. cxd3 {[%clk 0:00:40.6]} 27... Rc3 {[%clk
0:01:23.3]} 28. Rf3 {[%clk 0:00:41.5]} 28... Rfc8 {[%clk 0:00:22.8]} 29. g4
{[%clk 0:00:43.4]} 29... Rxa3 {[%clk 0:00:23]} 30. g3 {[%clk 0:00:30.4]} 30...
Rcc3 {[%clk 0:00:23.8]} 31. Rd1 {[%clk 0:00:30.2]} 31... b4 {[%clk 0:00:24.9]}
32. Ng2 {[%clk 0:00:31.2]} 32... b3 {[%clk 0:00:26.2]} 33. Nf4 {[%clk
0:00:32.5]} 33... Rc2 {[%clk 0:00:26.9]} 34. g5 {[%clk 0:00:33.1]} 34... fxg5
{[%clk 0:00:27]} 35. Ne6 {[%clk 0:00:32.1]} 35... fxe6 {[%clk 0:00:27.3]} 36.
dxe6 {[%clk 0:00:33.2]} 36... Bc6 {[%clk 0:00:27.7]} 37. Rdf1 {[%clk 0:00:34.7]}
37... Raa2 {[%clk 0:00:28.3]} 38. R3f2 {[%clk 0:00:24.9]} 38... Rxf2 {[%clk
0:00:28.5]} 39. Rxf2 {[%clk 0:00:26.3]} 39... Rxf2 {[%clk 0:00:30.2]} 40. Kxf2
{[%clk 0:00:27.7]} 40... b2 {[%clk 0:00:32.1]} 41. Kf3 {[%clk 0:00:27.1]} 41...
b1=Q {[%clk 0:00:34]} 42. Kg4 {[%clk 0:00:28.8]} 42... Qxd3 {[%clk 0:00:34.7]}
43. Kh3 {[%clk 0:00:30.1]} 43... Be5 {[%clk 0:00:34.9]} 44. e7 {[%clk
0:00:28.2]} 44... Qxg3# {[%clk 0:00:35.6]} 0-1

[Event "*** Titled Tuesday 3|2 Blitz"]
[Site "Chess.com"]
[Date "2016.09.06"]
[Round "1"]
[White "fpawn"]
[Black "Gabrielian_Artur"]
[Result "0-1"]
[WhiteElo "2198"]
[BlackElo "2516"]
[TimeControl "180+2"]
[EndTime "17:08:53 PDT"]
[Termination "Gabrielian_Artur won by resignation"]

1. e4 {[%clk 0:03:01]} 1... c5 {[%clk 0:03:00.4]} 2. Nc3 {[%clk 0:03:01.9]} 2...
d6 {[%clk 0:03:01.7]} 3. g3 {[%clk 0:03:03.5]} 3... Nc6 {[%clk 0:03:02.8]} 4.
Bg2 {[%clk 0:03:05]} 4... g6 {[%clk 0:03:04.3]} 5. d3 {[%clk 0:03:06.4]} 5...
Bg7 {[%clk 0:03:05.8]} 6. Be3 {[%clk 0:03:07.4]} 6... Rb8 {[%clk 0:03:06.7]} 7.
f4 {[%clk 0:03:06.1]} 7... e6 {[%clk 0:03:05.8]} 8. Qd2 {[%clk 0:03:06]} 8...
Nge7 {[%clk 0:03:06.6]} 9. Nf3 {[%clk 0:03:07]} 9... b5 {[%clk 0:03:07.9]} 10.
O-O {[%clk 0:02:59.4]} 10... b4 {[%clk 0:03:09.1]} 11. Nd1 {[%clk 0:03:00.5]}
11... O-O {[%clk 0:03:07]} 12. Kh1 {[%clk 0:02:59.7]} 12... a5 {[%clk
0:03:05.5]} 13. Rb1 {[%clk 0:03:00.7]} 13... Ba6 {[%clk 0:03:05.2]} 14. b3
{[%clk 0:02:59.7]} 14... a4 {[%clk 0:03:05.6]} 15. e5 {[%clk 0:02:59.9]} 15...
Nd5 {[%clk 0:03:05]} 16. Bg1 {[%clk 0:02:58.2]} 16... dxe5 {[%clk 0:02:59.6]}
17. fxe5 {[%clk 0:02:53]} 17... Nxe5 {[%clk 0:02:57.2]} 18. Bxc5 {[%clk
0:02:48.2]} 18... Re8 {[%clk 0:02:57.3]} 19. Nxe5 {[%clk 0:02:38.7]} 19... Bxe5
{[%clk 0:02:57.4]} 20. Qf2 {[%clk 0:02:38.6]} 20... Qc7 {[%clk 0:02:50.6]} 21.
Re1 {[%clk 0:01:50.5]} 21... Bg7 {[%clk 0:02:42.4]} 22. d4 {[%clk 0:01:51.7]}
22... axb3 {[%clk 0:02:42.5]} 23. axb3 {[%clk 0:01:49.6]} 23... Nf6 {[%clk
0:02:37.5]} 24. Ra1 {[%clk 0:01:48.4]} 24... Bb7 {[%clk 0:02:37.8]} 25. Ne3
{[%clk 0:01:45.6]} 25... Bxg2+ {[%clk 0:02:34.5]} 26. Qxg2 {[%clk 0:01:45.7]}
26... Nd7 {[%clk 0:02:35.6]} 27. Ra7 {[%clk 0:01:41.1]} 27... Qc8 {[%clk
0:02:36.7]} 28. Bd6 {[%clk 0:01:36.7]} 28... Rb5 {[%clk 0:02:25.7]} 29. Nc4
{[%clk 0:01:25.2]} 29... Nb6 {[%clk 0:01:54.2]} 30. Bc5 {[%clk 0:01:19.1]} 30...
Nxc4 {[%clk 0:01:48.1]} 31. bxc4 {[%clk 0:01:20.1]} 31... Rb8 {[%clk 0:01:48.5]}
32. Rf1 {[%clk 0:01:19.9]} 32... f5 {[%clk 0:01:48.5]} 33. Rfa1 {[%clk
0:01:12.5]} 33... e5 {[%clk 0:01:42.7]} 34. Qd5+ {[%clk 0:01:11.4]} 34... Qe6
{[%clk 0:01:29.4]} 35. Qxe6+ {[%clk 0:01:10.7]} 35... Rxe6 {[%clk 0:01:30.7]}
36. d5 {[%clk 0:01:11.8]} 36... Ree8 {[%clk 0:01:32.1]} 37. Rc7 {[%clk
0:01:06.4]} 37... Ra8 {[%clk 0:01:29.6]} 38. Raa7 {[%clk 0:01:01.5]} 38... Rxa7
{[%clk 0:01:29.6]} 39. Rxa7 {[%clk 0:01:02.6]} 39... e4 {[%clk 0:01:30.5]} 40.
Be3 {[%clk 0:01:00.6]} 40... Bf8 {[%clk 0:01:14.5]} 41. c5 {[%clk 0:00:59.8]}
41... g5 {[%clk 0:01:13.9]} 42. c6 {[%clk 0:00:58.3]} 42... f4 {[%clk
0:01:14.3]} 43. gxf4 {[%clk 0:00:58.5]} 43... gxf4 {[%clk 0:01:15.8]} 44. Bxf4
{[%clk 0:00:55.2]} 44... e3 {[%clk 0:01:17.1]} 45. Ra1 {[%clk 0:00:41.5]} 45...
e2 {[%clk 0:01:16.3]} 46. Re1 {[%clk 0:00:42.5]} 46... b3 {[%clk 0:01:06.4]} 47.
cxb3 {[%clk 0:00:37.7]} 47... Bb4 {[%clk 0:01:07.3]} 48. d6 {[%clk 0:00:38.5]}
48... Bxe1 {[%clk 0:01:04.8]} 49. d7 {[%clk 0:00:39.7]} 49... Rf8 {[%clk
0:01:04.7]} 50. c7 {[%clk 0:00:36.2]} 50... Ba5 {[%clk 0:01:03.6]} 51. c8=Q
{[%clk 0:00:22.7]} 51... e1=Q+ {[%clk 0:01:03.3]} 52. Kg2 {[%clk 0:00:24.2]}
52... Qe4+ {[%clk 0:01:00.1]} 53. Kh3 {[%clk 0:00:24.1]} 53... Qf5+ {[%clk
0:01:00.7]} 54. Kg2 {[%clk 0:00:23.9]} 54... Rxc8 {[%clk 0:01:01.4]} 0-1

[Event "*** Titled Tuesday 3|2 Blitz"]
[Site "Chess.com"]
[Date "2016.09.06"]
[Round "1"]
[White "CraiggoryC"]
[Black "tigra"]
[Result "0-1"]
[WhiteElo "2015"]
[BlackElo "2419"]
[TimeControl "180+2"]
[EndTime "17:09:10 PDT"]
[Termination "tigra won by resignation"]

1. e4 {[%clk 0:03:01.6]} 1... c5 {[%clk 0:03:00]} 2. Nf3 {[%clk 0:03:02.2]} 2...
g6 {[%clk 0:03:01.2]} 3. d4 {[%clk 0:03:01.3]} 3... cxd4 {[%clk 0:03:03.1]} 4.
Nxd4 {[%clk 0:03:02.9]} 4... Nc6 {[%clk 0:03:03.3]} 5. c4 {[%clk 0:03:01.8]}
5... d6 {[%clk 0:03:04]} 6. Nc3 {[%clk 0:03:02.2]} 6... Nxd4 {[%clk 0:03:04.3]}
7. Qxd4 {[%clk 0:03:02.8]} 7... Nf6 {[%clk 0:03:06.2]} 8. Bg5 {[%clk 0:03:03.1]}
8... Bg7 {[%clk 0:03:06.9]} 9. Qd2 {[%clk 0:02:59.8]} 9... Be6 {[%clk
0:03:07.6]} 10. Be2 {[%clk 0:02:59.8]} 10... Rc8 {[%clk 0:03:06.4]} 11. b3
{[%clk 0:02:57.9]} 11... b5 {[%clk 0:03:05.1]} 12. cxb5 {[%clk 0:02:43.2]} 12...
Nxe4 {[%clk 0:02:55.1]} 13. Nxe4 {[%clk 0:02:42.9]} 13... Bxa1 {[%clk 0:02:57]}
14. O-O {[%clk 0:02:30.8]} 14... Be5 {[%clk 0:02:54.6]} 15. Bh6 {[%clk
0:01:22.1]} 15... d5 {[%clk 0:02:34.9]} 16. Ng5 {[%clk 0:01:15.8]} 16... Qc7
{[%clk 0:02:32.4]} 17. Nxe6 {[%clk 0:00:58.6]} 17... fxe6 {[%clk 0:02:32.5]} 18.
Bg4 {[%clk 0:00:49]} 18... Qc2 {[%clk 0:01:11.9]} 19. Qe1 {[%clk 0:00:23.3]}
19... Qe4 {[%clk 0:01:06.9]} 20. Qxe4 {[%clk 0:00:23.8]} 20... dxe4 {[%clk
0:01:07.8]} 21. Bxe6 {[%clk 0:00:25.4]} 21... Rc2 {[%clk 0:01:06.2]} 22. a4
{[%clk 0:00:23.4]} 22... Bd4 {[%clk 0:01:04.6]} 23. Be3 {[%clk 0:00:18.3]} 23...
Bxe3 {[%clk 0:01:03.5]} 24. fxe3 {[%clk 0:00:19.6]} 24... Rc5 {[%clk 0:00:57.9]}
25. Rf4 {[%clk 0:00:16.8]} 25... Re5 {[%clk 0:00:57.7]} 26. Bc4 {[%clk
0:00:16.7]} 26... Kd7 {[%clk 0:00:58.2]} 27. a5 {[%clk 0:00:17.4]} 27... Rc8
{[%clk 0:00:56.6]} 28. Rf7 {[%clk 0:00:16.9]} 28... h5 {[%clk 0:00:56.9]} 29.
Rg7 {[%clk 0:00:17.6]} 29... g5 {[%clk 0:00:57.8]} 30. Rh7 {[%clk 0:00:17.6]}
30... h4 {[%clk 0:00:56.2]} 31. Rh5 {[%clk 0:00:17.3]} 31... Rf8 {[%clk
0:00:55.6]} 32. Rh6 {[%clk 0:00:16.7]} 32... Rf6 {[%clk 0:00:54.5]} 33. Rxf6
{[%clk 0:00:17.5]} 33... exf6 {[%clk 0:00:55.3]} 34. Kf2 {[%clk 0:00:19.2]}
34... g4 {[%clk 0:00:37.6]} 35. Be2 {[%clk 0:00:17.8]} 35... Rg5 {[%clk
0:00:31.8]} 36. h3 {[%clk 0:00:17.8]} 36... gxh3 {[%clk 0:00:32.3]} 37. gxh3
{[%clk 0:00:18.5]} 37... f5 {[%clk 0:00:32.7]} 38. Bf1 {[%clk 0:00:18.2]} 38...
Rg3 {[%clk 0:00:32.3]} 39. b6 {[%clk 0:00:15.3]} 39... axb6 {[%clk 0:00:32.7]}
40. axb6 {[%clk 0:00:16.6]} 40... Kc6 {[%clk 0:00:32.4]} 41. b4 {[%clk
0:00:18.2]} 41... Kxb6 {[%clk 0:00:33.4]} 42. b5 {[%clk 0:00:19.7]} 42... Kc5
{[%clk 0:00:34.5]} 43. Ke2 {[%clk 0:00:13.9]} 43... Rg1 {[%clk 0:00:34.2]} 44.
Kf2 {[%clk 0:00:14.6]} 44... Rxf1+ {[%clk 0:00:34.4]} 45. Kxf1 {[%clk
0:00:15.6]} 45... Kxb5 {[%clk 0:00:35.8]} 46. Ke2 {[%clk 0:00:15.9]} 46... Kc4
{[%clk 0:00:36.8]} 47. Kd2 {[%clk 0:00:16.6]} 47... Kb3 {[%clk 0:00:38.2]} 48.
Kd1 {[%clk 0:00:16]} 48... Kc3 {[%clk 0:00:39.3]} 49. Ke2 {[%clk 0:00:16.1]}
49... Kc2 {[%clk 0:00:40.6]} 50. Ke1 {[%clk 0:00:15.1]} 50... Kd3 {[%clk
0:00:41.7]} 51. Kf2 {[%clk 0:00:16.4]} 51... Kd2 {[%clk 0:00:43]} 52. Kg2 {[%clk
0:00:17.3]} 52... Kxe3 {[%clk 0:00:43.9]} 53. Kh2 {[%clk 0:00:18.2]} 53... f4
{[%clk 0:00:44.7]} 54. Kh1 {[%clk 0:00:19.2]} 54... Kf2 {[%clk 0:00:45.5]} 55.
Kh2 {[%clk 0:00:19.9]} 55... e3 {[%clk 0:00:46.8]} 56. Kh1 {[%clk 0:00:21.2]}
56... Kg3 {[%clk 0:00:48.2]} 0-1